fUSD/lending_fUSD_20250911
["ID","MTS","AMOUNT","RATE_DAILY","PERIOD"]
[384857910,1757595293158,-1200.0,0.00043689,60]
[384857911,1757595293194,-1007.91266297,0.000437,120]
[384857912,1757595293234,-152.0,0.000437,120]
[384857913,1757595293270,-1247.42,0.00043722,120]
[384857914,1757595293307,-1200.0,0.00043726,30]
[384857915,1757595293345,-113437.876035,0.00043744,120]
[384857916,1757595293379,-500.0,0.00043747,30]
[384857917,1757595293414,-500.0,0.00043757,30]
[384857918,1757595293449,-500.0,0.00043785,30]
[384857919,1757595293483,-873.08241,0.000438,120]
[384857920,1757595293517,-491.58295111,0.000438,30]
[384857921,1757595293550,-12569.75090015,0.000438,120]
[384857922,1757595293583,-25845.18473215,0.000438,120]
[384857923,1757595293618,-994.21,0.000438,120]
[384857924,1757595293654,-5000.0,0.000438,120]
[384857925,1757595293687,-500.0,0.00043808,120]
[384857926,1757595293722,-1247.42,0.00043822,120]
[384857927,1757595293757,-1200.0,0.00043823,30]
[384857928,1757595293792,-1200.0,0.00043828,30]
[384857929,1757595293826,-1074.79,0.00043835,120]
[384857930,1757595293860,-1074.79,0.00043835,120]
[384857931,1757595293895,-1074.79,0.00043835,120]
[384857932,1757595293929,-1074.79,0.00043835,120]
[384857933,1757595293963,-1074.79,0.00043835,120]
[384857934,1757595293997,-1074.79,0.00043835,120]
[384857935,1757595294034,-1074.79,0.00043835,120]
[384857936,1757595294070,-1074.79,0.00043835,120]
[384857937,1757595294106,-1074.79,0.00043835,120]
[384857938,1757595294143,-1074.79,0.00043835,120]
[384857939,1757595294178,-1074.79,0.00043835,120]
[384857940,1757595294213,-1074.79,0.00043835,120]
[384857941,1757595294249,-1074.79,0.00043835,120]
[384857942,1757595294285,-1074.79,0.00043835,120]
[384857943,1757595294321,-1074.79,0.00043835,120]
[384857944,1757595294356,-1074.79,0.00043835,120]
[384857945,1757595294392,-1074.79,0.00043835,120]
[384857946,1757595294429,-1074.79,0.00043835,120]
[384857947,1757595294466,-1074.79,0.00043835,120]
[384857948,1757595294504,-1074.79,0.00043835,120]
[384857949,1757595294541,-1074.79,0.00043835,120]
[384857950,1757595294577,-1074.79,0.00043835,120]
[384857951,1757595294616,-1074.79,0.00043835,120]
[384857952,1757595294652,-1074.97423988,0.00043835,120]
[384857968,1757595809419,156.65,0.00016438,2]
[384857987,1757596131496,153.52,0.00012451,2]
[384857988,1757596161140,-151.0,0.00020593,2]
[384857989,1757596161161,-151.0,0.00020605,2]
[384857990,1757596161181,-250.0,0.00022684,2]
[384857991,1757596161201,-41.85828588,0.00023743,2]
[384857995,1757596231790,-115.92171412,0.00023743,2]
[384857996,1757596231799,-200.0,0.0002431,7]
[384857997,1757596231809,-175.89828588,0.0002451,7]
[384857998,1757596231848,-24.10171412,0.0002451,7]
[384857999,1757596231858,-224.05856018,0.00024558,2]
[384858000,1757596231867,-150.0,0.00024633,2]
[384858001,1757596231877,-150.00000001,0.00024633,2]
[384858002,1757596231886,-178.68,0.00024658,2]
[384858003,1757596231895,-758.49434402,0.00024658,7]
[384858004,1757596231907,-1681.19727998,0.00024658,7]
[384858005,1757596231916,-700.0,0.000247,2]
[384858006,1757596231927,-200.0,0.0002481,7]
[384858007,1757596231936,-539.00604829,0.0002484,2]
[384858008,1757596231959,-660.99395171,0.0002484,2]
[384858009,1757596231969,-795.9381649,0.00024841,2]
[384858010,1757596232021,-756.44512462,0.00024841,2]
[384858011,1757596232130,-3447.61671048,0.00024841,2]
[384858012,1757596232139,-300.0,0.00024899,2]
[384858013,1757596232149,-300.0,0.00024899,2]
[384858014,1757596232158,-300.0,0.00024899,2]
[384858015,1757596232167,-3212.79702986,0.000249,2]
[384858016,1757596232178,-150.0,0.00024902,7]
[384858017,1757596232187,-200.0,0.0002491,7]
[384858018,1757596232196,-264.49,0.00025065,2]
[384858019,1757596232206,-200.0,0.000251,7]
[384858020,1757596232215,-248.13,0.00025467,2]
[384858021,1757596232225,-300.0,0.00025508,2]
[384858022,1757596232234,-200.0,0.0002551,7]
[384858024,1757596232244,-392.21,0.00025525,2]
[384858025,1757596232253,-800.0,0.000257,3]
[384858027,1757596232262,-5888.0,0.00025735,2]
[384858029,1757596232272,-168.0,0.00025794,2]
[384858032,1757596232284,-200.0,0.0002581,7]
[384858034,1757596232293,-941.62358267,0.00025858,2]
[384858036,1757596232303,-200.0,0.0002591,7]
[384858038,1757596232312,-160.0,0.0002596,7]
[384858040,1757596232322,-1160.79793685,0.00025979,10]
[384858042,1757596232331,-1339.0,0.00026,2]
[384858043,1757596232340,-168.0,0.00026067,2]
[384858045,1757596232351,-200.0,0.000261,7]
[384858047,1757596232363,-352.0,0.000262,2]
[384858049,1757596232373,-200.0,0.0002621,7]
[384858051,1757596232382,-200.0,0.0002631,7]
[384858053,1757596232392,-413.28417287,0.00026458,2]
[384858055,1757596232401,-2500.0,0.00026478,2]
[384858057,1757596232410,-392.21,0.00026482,2]
[384858059,1757596232420,-1109.34936836,0.000265,2]
[384858061,1757596232431,-200.0,0.0002651,7]
[384858063,1757596232441,-4743.5323125,0.00026558,2]
[384858065,1757596232453,-639.36917284,0.00026558,2]
[384858068,1757596232462,-6634.64082716,0.00026558,2]
[384858070,1757596232474,-818.66431453,0.00026558,2]
[384858072,1757596232486,-330.04702599,0.00026558,2]
[384858074,1757596232497,-654.36828413,0.00026558,2]
[384858253,1757596238043,-6276.56374819,0.00026558,2]
[384858254,1757596238052,-317.01184086,0.00026577,2]
[384858256,1757596238062,-500.0,0.00026578,2]
[384858258,1757596238071,-500.0,0.00026578,2]
[384858261,1757596238080,-153.97599017,0.00026578,2]
[384858264,1757596238090,-500.0,0.00026578,2]
[384858266,1757596238099,-401.48581048,0.00026578,2]
[384858271,1757596238111,-98.51418952,0.00026578,2]
[384858274,1757596238120,-150.0,0.00026578,2]
[384858277,1757596238129,-282.13209879,0.00026578,2]
[384858280,1757596238139,-150.0,0.00026578,2]
[384858283,1757596238147,-110.12907271,0.00026578,2]
[384858289,1757596238174,-39.87092729,0.00026578,2]
[384858292,1757596238186,-150.0,0.00026578,2]
[384858296,1757596238196,-150.0,0.00026578,2]
[384858299,1757596238205,-150.0,0.00026578,2]
[384858301,1757596238214,-150.54333779,0.00026578,2]
[384858303,1757596238224,-500.0,0.00026578,2]
[384858305,1757596238233,-107.52488625,0.00026578,2]
[384858308,1757596238257,-392.47511375,0.00026578,2]
[384858310,1757596238267,-150.0,0.00026578,2]
[384858312,1757596238277,-150.84043773,0.00026578,2]
[384858314,1757596238289,-150.70483784,0.00026578,2]
[384858316,1757596238299,-150.0,0.00026578,2]
[384858318,1757596238309,-152.27174978,0.00026578,2]
[384858320,1757596238319,-500.0,0.00026578,2]
[384858322,1757596238330,-500.0,0.00026578,2]
[384858324,1757596238339,-153.43269839,0.00026578,2]
[384858326,1757596238349,-500.0,0.00026578,2]
[384858328,1757596238359,-293.2525377,0.00026578,2]
[384858331,1757596238372,-206.7474623,0.00026578,2]
[384858333,1757596238381,-150.0,0.00026578,2]
[384858335,1757596238390,-150.0,0.00026578,2]
[384858337,1757596238399,-150.0,0.00026578,2]
[384858339,1757596238408,-187.87740045,0.00026578,2]
[384858341,1757596238451,-312.12259955,0.00026578,2]
[384858342,1757596238460,-500.0,0.00026578,2]
[384858343,1757596238470,-500.0,0.00026578,2]
[384858344,1757596238480,-14066.90019439,0.00026578,2]
[384858345,1757596238491,-4555.64476229,0.00026578,2]
[384858346,1757596238510,-7180.72744882,0.00026578,2]
[384858347,1757596238540,-376.95138059,0.00026578,2]
[384858349,1757596238551,-2864.0630132,0.00026578,2]
[384858352,1757596238563,-7267.0,0.00026578,2]
[384858488,1757596239818,-106027.29908677,0.00026578,2]
[384858490,1757596239830,-48970.22471394,0.00026578,2]
[384858492,1757596239839,-1500.0,0.000266,9]
[384858494,1757596239849,-1109.34936832,0.00026619,2]
[384858496,1757596239859,-14544.8194587,0.00026638,2]
[384858498,1757596239868,-500.0,0.00026647,2]
[384858500,1757596239878,-114641.13475084,0.00026648,2]
[384858503,1757596239889,-701.35153195,0.00026648,2]
[384858513,1757596239977,-1798.54806924,0.00026648,2]
[384858515,1757596239989,-2217.3955,0.00026648,2]
[384858517,1757596240001,-1667.106315,0.00026648,2]
[384858519,1757596240012,-1461.280263,0.00026648,2]
[384858522,1757596240031,-3688.59972024,0.00026648,2]
[384858524,1757596240042,-870.90762003,0.00026648,2]
[384858530,1757596240087,-1388.67040378,0.00026648,2]
[384858532,1757596240099,-501.97000001,0.00026648,2]
[384858813,1757596242805,-413.79362022,0.00026648,2]
[384858820,1757596242856,-1552.61733369,0.00026648,2]
[384858822,1757596242866,-29513.4557199,0.00026648,2]
[384858824,1757596242876,-151.74281222,0.00026658,2]
[384858826,1757596242886,-500.0,0.00026658,2]
[384858828,1757596242896,-403.9,0.00026658,5]
[384858830,1757596242905,-14756.72786,0.0002668,2]
[384858832,1757596242915,-14544.8194587,0.0002669,2]
[384858834,1757596242924,-810.0,0.000267,4]
[384858836,1757596242937,-3100.0,0.000267,9]
[384858838,1757596242947,-5382.90148532,0.00026701,2]
[384858840,1757596242957,-1109.34936832,0.00026738,2]
[384858842,1757596242966,-248.13,0.0002674,2]
[384858844,1757596242976,-889.0,0.00026759,7]
[384858845,1757596242986,-500.0,0.00026792,5]
[384858846,1757596242996,-340.0,0.00026796,2]
[384858847,1757596243006,-274.93079338,0.00026799,2]
[384858848,1757596243017,-4600.0,0.000268,9]
[384858849,1757596243027,-14756.72786,0.00026802,2]
[384858850,1757596243037,-200.0,0.0002681,7]
[384858851,1757596243047,-150.0,0.00026812,7]
[384858852,1757596243056,-150.0,0.00026812,7]
[384858853,1757596243066,-150.0,0.00026812,7]
[384858855,1757596243075,-500.0,0.00026812,7]
[384858857,1757596243085,-500.0,0.00026812,7]
[384858859,1757596243095,-200.0,0.00026812,7]
[384858862,1757596243105,-150.0,0.00026812,7]
[384858864,1757596243115,-150.0,0.00026812,7]
[384858866,1757596243124,-500.0,0.00026812,2]
[384858868,1757596243134,-515.37529716,0.00026812,7]
[384858870,1757596243143,-160.0,0.00026812,7]
[384858872,1757596243153,-14544.8194587,0.00026819,2]
[384858874,1757596243166,-14756.72786,0.00026829,2]
[384858876,1757596243175,-14756.72786,0.00026831,2]
[384858878,1757596243187,-29089.6389174,0.00026839,2]
[384858880,1757596243197,-14756.72786,0.00026839,2]
[384858882,1757596243206,-344.0,0.00026839,2]
[384858884,1757596243215,-500.0,0.0002684,2]
[384858886,1757596243225,-160.0,0.0002684,3]
[384858888,1757596243235,-14544.8194587,0.00026841,2]
[384858890,1757596243245,-14756.72786,0.00026841,2]
[384858892,1757596243257,-5382.90148532,0.00026844,2]
[384858894,1757596243267,-1798.95,0.00026849,5]
[384858896,1757596243284,-1798.95,0.00026849,5]
[384858898,1757596243294,-1798.95,0.00026849,5]
[384858900,1757596243304,-1798.95,0.00026849,5]
[384858902,1757596243313,-1798.95,0.00026849,5]
[384858904,1757596243324,-1798.95,0.00026849,5]
[384858906,1757596243333,-1798.95,0.00026849,5]
[384858909,1757596243343,-1798.95,0.00026849,5]
[384858911,1757596243353,-1798.95,0.00026849,5]
[384858953,1757596243743,-1798.95,0.00026849,5]
[384858954,1757596243753,-1798.95,0.00026849,5]
[384858955,1757596243762,-1798.95,0.00026849,5]
[384858956,1757596243772,-1798.95,0.00026849,5]
[384858957,1757596243782,-1798.95,0.00026849,5]
[384858958,1757596243791,-1798.95,0.00026849,5]
[384858959,1757596243800,-1798.95,0.00026849,5]
[384858960,1757596243809,-1798.95,0.00026849,5]
[384858961,1757596243819,-1798.95,0.00026849,5]
[384858962,1757596243829,-1798.95,0.00026849,5]
[384858963,1757596243838,-1798.95,0.00026849,5]
[384858964,1757596243847,-1798.95,0.00026849,5]
[384858965,1757596243857,-1798.95,0.00026849,5]
[384858966,1757596243866,-1798.95,0.00026849,5]
[384858967,1757596243881,-1799.02129304,0.00026849,5]
[384858968,1757596243890,-500.0,0.00026852,2]
[384858969,1757596243899,-500.0,0.00026852,2]
[384858971,1757596243909,-500.0,0.00026852,2]
[384858973,1757596243918,-150.0,0.00026852,2]
[384858975,1757596243927,-500.0,0.00026852,2]
[384858977,1757596243939,-150.0,0.00026852,2]
[384858979,1757596243948,-150.0,0.00026852,2]
[384858981,1757596243957,-150.0,0.00026852,2]
[384858983,1757596243967,-150.0,0.00026852,2]
[384858985,1757596243976,-500.0,0.00026852,2]
[384858987,1757596243986,-500.0,0.00026852,2]
[384858989,1757596243995,-150.0,0.00026852,2]
[384858991,1757596244004,-150.0,0.00026852,2]
[384858993,1757596244013,-500.0,0.00026852,2]
[384858995,1757596244022,-502.13459716,0.00026852,2]
[384858997,1757596244031,-500.0,0.00026852,2]
[384858999,1757596244041,-500.0,0.00026852,2]
[384859001,1757596244050,-150.0,0.00026852,2]
[384859003,1757596244059,-500.0,0.00026852,2]
[384859005,1757596244068,-500.0,0.00026852,2]
[384859007,1757596244078,-500.0,0.00026852,2]
[384859009,1757596244087,-1109.34936832,0.00026857,2]
[384859011,1757596244097,-356.99296105,0.00026867,2]
[384859013,1757596244106,-14756.72786,0.0002688,2]
[384859015,1757596244115,-14544.8194587,0.0002689,2]
[384859017,1757596244124,-602.94506114,0.00026892,2]
[384859019,1757596244134,-6200.0,0.000269,9]
[384859021,1757596244144,-11227.44801505,0.00026911,2]
[384859023,1757596244154,-1605.73001247,0.00026913,2]
[384859025,1757596244163,-71640.42269914,0.00026915,2]
[384859027,1757596244172,-171.18983111,0.00026917,2]
[384859030,1757596244183,-1605.73001247,0.00026922,2]
[384859032,1757596244192,-3056.64196983,0.00026925,2]
[384859034,1757596244202,-24390.8527244,0.00026933,2]
[384859037,1757596244222,-1605.73001247,0.00026944,2]
[384859039,1757596244231,-24390.8527244,0.00026945,2]
[384859041,1757596244242,-3056.64196983,0.00026952,2]
[384859043,1757596244252,-341.0,0.00026954,2]
[384859045,1757596244262,-24950.17854656,0.00026957,2]
[384859047,1757596244272,-71640.42269914,0.0002696,2]
[384859049,1757596244286,-24390.8527244,0.00026965,2]
[384859051,1757596244295,-3056.64196983,0.00026967,2]
[384859053,1757596244305,-24390.8527244,0.00026969,2]
[384859055,1757596244315,-415.17614074,0.00026971,2]
[384859057,1757596244325,-888.0,0.00026975,2]
[384859059,1757596244335,-171.18983111,0.00026975,2]
[384859061,1757596244345,-171.18983111,0.00026975,2]
[384859063,1757596244355,-1109.34936832,0.00026976,2]
[384859065,1757596244366,-300.0,0.00026977,2]
[384859067,1757596244376,-420.0,0.00026977,2]
[384859069,1757596244386,-5382.90148532,0.00026987,2]
[384859071,1757596244396,-3056.64196983,0.00026987,2]
[384859073,1757596244406,-71640.42269914,0.00026988,2]
[384859075,1757596244415,-171.18983111,0.00026988,2]
[384859077,1757596244425,-340.0,0.00026999,2]
[384859079,1757596244438,-864.54361722,0.00027,15]
[384859081,1757596244447,-266.95395037,0.00027002,2]
[384859083,1757596244457,-1680.0,0.00027036,2]
[384859086,1757596244467,-500.0,0.00027043,2]
[384859088,1757596244477,-500.0,0.00027066,5]
[384859090,1757596244487,-150.0,0.00027086,7]
[384859092,1757596244497,-195.63804642,0.00027086,7]
[384859094,1757596244507,-500.0,0.00027086,7]
[384859096,1757596244516,-500.0,0.00027086,7]
[384859098,1757596244526,-150.0,0.00027086,7]
[384859100,1757596244535,-270.86362443,0.00027086,7]
[384859102,1757596244546,-500.0,0.00027086,2]
[384859104,1757596244556,-278.62603458,0.00027094,2]
[384859106,1757596244566,-1109.34936832,0.00027096,2]
[384859108,1757596244575,-200.0,0.000271,7]
[384859110,1757596244586,-181.23,0.000271,2]
[384859112,1757596244596,-1114.0,0.00027102,2]
[384859114,1757596244605,-278558.98159118,0.00027102,2]
[384859116,1757596244615,-14756.72786,0.00027103,2]
[384859117,1757596244624,-14544.8194587,0.00027112,2]
[384859118,1757596244634,-14756.72786,0.00027116,2]
[384859119,1757596244643,-14544.8194587,0.0002712,2]
[384859120,1757596244653,-500.0,0.00027126,2]
[384859121,1757596244663,-500.0,0.00027126,2]
[384859122,1757596244673,-500.0,0.00027126,2]
[384859123,1757596244685,-500.0,0.00027126,2]
[384859124,1757596244696,-150.0,0.00027126,2]
[384859125,1757596244707,-202.02817944,0.00027126,2]
[384859126,1757596244719,-150.0,0.00027126,2]
[384859127,1757596244730,-151.5433957,0.00027126,2]
[384859128,1757596244740,-201.76319419,0.00027126,2]
[384859129,1757596244750,-500.0,0.00027126,2]
[384859130,1757596244760,-150.0,0.00027126,2]
[384859131,1757596244769,-500.0,0.00027126,2]
[384859132,1757596244779,-200.0,0.00027126,2]
[384859133,1757596244790,-500.0,0.00027126,2]
[384859134,1757596244800,-500.0,0.00027126,2]
[384859135,1757596244810,-370.36787273,0.00027126,2]
[384859136,1757596244820,-191.41,0.00027126,2]
[384859137,1757596244831,-500.0,0.00027126,2]
[384859138,1757596244840,-500.0,0.00027126,2]
[384859139,1757596244850,-500.0,0.00027126,2]
[384859140,1757596244861,-5382.90148532,0.0002713,2]
[384859141,1757596244871,-356.99296105,0.00027136,2]
[384859142,1757596244881,-516.0,0.00027137,2]
[384859143,1757596244891,-160.0,0.00027164,2]
[384859144,1757596244901,-515.37529716,0.00027164,2]
[384859145,1757596244910,-212.89373682,0.00027164,2]
[384859146,1757596244920,-160.0,0.00027164,2]
[384859147,1757596244930,-5000.0,0.00027197,2]
[384859149,1757596244947,-888.0,0.00027198,7]
[384859150,1757596244958,-602.4254459,0.00027203,2]
[384859152,1757596244969,-160.0,0.00027208,2]
[384859154,1757596244980,-1109.34936832,0.00027215,2]
[384859155,1757596244991,-415.17614074,0.0002724,2]
[384859156,1757596245001,-157.78,0.00027246,2]
[384859157,1757596245013,-14756.72786,0.00027267,2]
[384859158,1757596245023,-5382.90148532,0.00027273,2]
[384859159,1757596245034,-14544.8194587,0.00027277,2]
[384859160,1757596245044,-2676.66479527,0.00027297,2]
[384859161,1757596245054,-278.60294078,0.00027297,2]
[384859162,1757596245064,-204.0,0.0002731,2]
[384859163,1757596245074,-340.0,0.00027314,2]
[384859164,1757596245084,-1109.34936832,0.00027334,2]
[384859165,1757596245094,-500.0,0.0002734,5]
[384859166,1757596245103,-29513.4557199,0.00027346,2]
[384859167,1757596245113,-197.71621947,0.00027346,2]
[384859168,1757596245123,-14544.8194587,0.00027349,2]
[384859169,1757596245133,-340.0,0.00027357,2]
[384859170,1757596245142,-43634.4583762,0.00027357,2]
[384859171,1757596245152,-14756.72786,0.0002736,2]
[384859172,1757596245161,-152.84644217,0.0002736,7]
[384859173,1757596245171,-203.09479321,0.0002736,7]
[384859174,1757596245181,-500.0,0.0002736,7]
[384859175,1757596245196,-201.54820584,0.0002736,7]
[384859176,1757596245206,-226.96245187,0.0002736,2]
[384859177,1757596245215,-278.62603458,0.00027365,2]
[384859178,1757596245225,-889.0,0.00027365,2]
[384859179,1757596245234,-1018.86724663,0.0002737,2]
[384859180,1757596245244,-23121.0,0.0002737,2]
[384859181,1757596245253,-6419.75825704,0.0002737,2]
[384859182,1757596245273,-4617.375812,0.0002737,2]
[384859183,1757596245287,-770.10533278,0.0002737,2]
[384859184,1757596245315,-1121.86445602,0.0002737,2]
[384859185,1757596245328,-524.68431067,0.0002737,2]
[384859186,1757596245416,-464.76347741,0.0002737,2]
[384859209,1757596246178,-2276.44835408,0.0002737,2]
[384859211,1757596246191,-507.59084733,0.00027373,2]
[384859213,1757596246201,-503.35678297,0.00027373,2]
[384859215,1757596246211,-500.6602303,0.00027373,2]
[384859217,1757596246222,-500.0,0.00027373,2]
[384859219,1757596246231,-500.0,0.00027373,2]
[384859221,1757596246241,-498.34077255,0.00027373,2]
[384859223,1757596246251,-501.78603352,0.00027373,2]
[384859225,1757596246260,-500.0,0.00027376,2]
[384859227,1757596246271,-345.0,0.0002738,2]
[384859229,1757596246284,-14756.72786,0.00027386,2]
[384859231,1757596246293,-500.0,0.00027386,2]
[384859233,1757596246303,-2318.43,0.00027386,2]
[384859235,1757596246312,-23280.26067925,0.00027387,2]
[384859250,1757596381138,1500.0,0.00030137,120]
[384859251,1757596397612,268.22178479,0.0002001,2]
[384859268,1757596711838,160.42,0.00016438,2]
[384859269,1757596741316,262.0,0.00019589,2]
[384859270,1757596776345,-151.0,0.00020547,2]
[384859271,1757596776365,-61.91874414,0.00020561,2]
[384859272,1757596777467,-586.35316159,0.00020561,2]
[384859273,1757596778980,-156.53,0.00020561,2]
[384859274,1757596781920,-156.42281418,0.00020561,2]
[384859275,1757596784095,-812.98544174,0.00020561,2]
[384859276,1757596786921,-963.4822811,0.00020561,2]
[384859277,1757596788777,-121.39755725,0.00020561,2]
[384859278,1757596788798,-142.95255876,0.00020592,2]
[384859279,1757596790936,-8.04744124,0.00020592,2]
[384859280,1757596790958,-148.37537294,0.00020622,2]
[384859281,1757596793316,-151.0,0.00020522,2]
[384859282,1757596793338,-2.62462706,0.00020622,2]
[384859283,1757596793359,-81.24689565,0.00020841,2]
[384859284,1757596801726,-94.91386038,0.00020841,2]
[384859285,1757596801747,-250.0,0.00020841,2]
[384859286,1757596801768,-195.0,0.00020841,2]
[384859287,1757596801788,-195.0,0.00020899,2]
[384859288,1757596801810,-250.0,0.00022924,2]
[384859289,1757596801833,-195.0,0.00022924,2]
[384859290,1757596801856,-300.0,0.00022924,2]
[384859291,1757596801879,-250.0,0.00023092,2]
[384859292,1757596801900,-91.78922396,0.00023092,2]
[384859293,1757596911798,-780.62,0.00027425,30]
[384859294,1757596912547,-484.17,0.000312,30]
[384859295,1757596912740,-398.46,0.00032128,30]
[384859296,1757596912793,-376.55,0.00032128,30]
[384859297,1757596912883,-484.17,0.000325,30]
[384859298,1757596912971,-398.46,0.00032801,30]
[384859299,1757596913019,-376.55,0.00032801,30]
[384859300,1757596913079,-1186.72,0.00032876,120]
[384859301,1757596913126,-1186.72,0.00032876,120]
[384859302,1757596913173,-1186.72,0.00032876,120]
[384859303,1757596913219,-1186.72,0.00032876,120]
[384859304,1757596913266,-1186.72,0.00032876,120]
[384859305,1757596913314,-1186.72,0.00032876,120]
[384859306,1757596913365,-1186.72,0.00032876,120]
[384859307,1757596913413,-1186.72,0.00032876,120]
[384859308,1757596913462,-1186.72,0.00032876,120]
[384859309,1757596913514,-1186.72,0.00032876,120]
[384859310,1757596913564,-1186.72,0.00032876,120]
[384859311,1757596913615,-1186.72,0.00032876,120]
[384859312,1757596913667,-1186.72,0.00032876,120]
[384859313,1757596913718,-1186.72,0.00032876,120]
[384859314,1757596913770,-1186.72,0.00032876,120]
[384859315,1757596913822,-1186.72,0.00032876,120]
[384859316,1757596913872,-1186.72,0.00032876,120]
[384859317,1757596913920,-1186.72,0.00032876,120]
[384859318,1757596913969,-1186.72,0.00032876,120]
[384859319,1757596914018,-1186.72,0.00032876,120]
[384859320,1757596914070,-1186.72,0.00032876,120]
[384859321,1757596914145,-209.0,0.00033,30]
[384859322,1757596914200,-1186.72,0.0003315,120]
[384859323,1757596914278,-1186.72,0.00033424,120]
[384859324,1757596914351,-398.46,0.00033474,30]
[384859325,1757596914397,-376.55,0.00033474,30]
[384859326,1757596914448,-209.0,0.000335,30]
[384859327,1757596914495,-780.62,0.00033649,30]
[384859328,1757596914552,-1186.89096127,0.00033698,120]
[384859329,1757596914633,-484.17,0.00034,30]
[384859330,1757596914684,-398.46,0.00034147,30]
[384859331,1757596914735,-376.55,0.00034147,30]
[384859332,1757596914786,-398.46,0.0003482,30]
[384859333,1757596914836,-376.55,0.0003482,30]
[384859334,1757596914884,-209.0,0.00034888,30]
[384859335,1757596914937,-398.46,0.00035494,60]
[384859336,1757596914987,-376.55,0.00035494,60]
[384859337,1757596915037,-484.17,0.000355,30]
[384859338,1757596915088,-2221.83,0.00035595,120]
[384859339,1757596915475,-289.0,0.0003589,30]
[384859340,1757596915532,-289.0,0.00036,30]
[384859341,1757596915586,-398.46,0.00036167,60]
[384859342,1757596915635,-376.55,0.00036167,60]
[384859343,1757596915683,-212.0,0.00036632,30]
[384859344,1757596915734,-484.17,0.000367,30]
[384859345,1757596915782,-398.46,0.0003684,60]
[384859346,1757596915830,-376.55,0.0003684,60]
[384859347,1757596915888,-289.0,0.00037397,30]
[384859348,1757596915940,-280.0,0.000374,30]
[384859349,1757596915994,-50000.0,0.00037512,30]
[384859350,1757596916050,-50000.0,0.00037512,31]
[384859351,1757596916105,-398.46,0.00037513,60]
[384859352,1757596916148,-376.55,0.00037513,60]
[384859353,1757596916191,-500.0,0.00037534,30]
[384859354,1757596916235,-1444.0,0.00037753,120]
[384859355,1757596916284,-2221.83,0.00038335,120]
[384859356,1757596916328,-209.0,0.00039074,90]
[384859357,1757596916368,-293.0,0.00039267,90]
[384859358,1757596916412,-3429.00269581,0.00039536,33]
[384859359,1757596916453,-3089.7729,0.00039588,30]
[384859360,1757596916495,-780.62,0.00039873,120]
[384859361,1757596916547,-50000.0,0.0004,40]
[384859362,1757596916591,-212.89373682,0.0004,30]
[384859363,1757596916633,-212.89373682,0.0004,120]
[384859364,1757596916674,-627.74905511,0.0004,120]
[384859365,1757596916713,-515.37529716,0.0004,30]
[384859366,1757596916754,-500.0,0.00040189,30]
[384859367,1757596916794,-1500.0,0.0004022,30]
[384859368,1757596916832,-500.0,0.00040252,30]
[384859369,1757596916871,-300.0,0.00040338,100]
[384859370,1757596916910,-627.74905511,0.00040398,120]
[384859371,1757596916949,-500.0,0.00040403,30]
[384859372,1757596916989,-700.0,0.00040418,30]
[384859373,1757596917029,-500.0,0.00040456,30]
[384859374,1757596917070,-1500.0,0.00040485,30]
[384859375,1757596917111,-500.0,0.00040595,30]
[384859376,1757596917150,-500.0,0.00040599,30]
[384859377,1757596917189,-700.0,0.0004063,30]
[384859378,1757596917227,-508.77665564,0.00040711,30]
[384859379,1757596917265,-500.0,0.00040712,30]
[384859380,1757596917304,-1500.0,0.00040764,30]
[384859381,1757596917342,-500.0,0.00040799,30]